bitfinex-derivatives/quotes_BTCF0:USTF0_20240817
["timestamp","ask_amount","ask_price","bid_price","bid_amount"]
[1723937352808,0.17025231,59420.0,59419.0,0.20964904]
[1723937353110,0.17025231,59420.0,59419.0,0.57044904]
[1723937354609,0.17025231,59420.0,59419.0,0.520202]
[1723937355014,0.17025231,59420.0,59419.0,0.159402]
[1723937355208,0.17025231,59420.0,59419.0,0.520202]
[1723937355610,0.17025231,59420.0,59419.0,0.159402]
[1723937355810,0.17025231,59420.0,59419.0,0.520202]
[1723937357308,0.17025231,59420.0,59419.0,0.4140741]
[1723937357619,0.17025231,59420.0,59419.0,0.003]
[1723937358507,0.17125231,59420.0,59419.0,0.002]
[1723937358708,0.17125231,59420.0,59417.0,0.0502741]
[1723937359218,0.17125231,59420.0,59418.0,0.0502741]
[1723937359421,0.17125231,59420.0,59417.0,0.0502741]
[1723937360106,0.17125231,59420.0,59418.0,0.0502741]
[1723937360309,0.17125231,59420.0,59416.0,0.0933]
[1723937360615,0.17125231,59420.0,59416.0,0.22349699]
[1723937361223,0.17125231,59420.0,59417.0,0.002]
[1723937361521,0.17025231,59420.0,59417.0,0.003]
[1723937361916,0.17025231,59420.0,59417.0,0.001]
[1723937362518,0.17025231,59420.0,59417.0,0.003]
[1723937363117,0.17025231,59420.0,59419.0,0.05026647]
[1723937364517,0.17025231,59420.0,59417.0,0.001]
[1723937364829,0.17025231,59420.0,59419.0,0.05026394]
[1723937365124,0.17025231,59420.0,59417.0,0.001]
[1723937365327,0.17025231,59420.0,59419.0,0.05026349]
[1723937365719,0.17025231,59420.0,59417.0,0.003]
[1723937366223,0.17125231,59420.0,59417.0,0.002]
[1723937367123,0.17125231,59420.0,59416.0,0.22349699]
[1723937367426,0.17125231,59420.0,59417.0,0.03704123]
[1723937367624,0.17125231,59420.0,59416.0,0.22349699]
[1723937367817,0.17025231,59420.0,59417.0,0.03904123]
[1723937368019,0.17025231,59420.0,59419.0,0.05026231]
[1723937369318,0.17025231,59420.0,59419.0,0.08730355]
[1723937369515,0.17125231,59420.0,59419.0,0.08730355]
[1723937370330,0.17125231,59420.0,59417.0,0.0953]
[1723937370331,0.17125231,59420.0,59417.0,0.14556231]
[1723937370627,0.17125231,59420.0,59417.0,0.14356231]
[1723937371522,0.17025231,59420.0,59417.0,0.14656231]
[1723937375130,0.17025231,59420.0,59417.0,0.0963]
[1723937379127,0.26355231,59420.0,59417.0,0.003]
[1723937398643,0.26355231,59420.0,59417.0,0.05326231]
[1723937401544,0.3608,59418.0,59417.0,0.003]
[1723937401744,0.5108,59418.0,59417.0,0.003]
[1723937402548,0.5108,59418.0,59417.0,0.002]
[1723937402750,0.5108,59418.0,59417.0,0.003]
[1723937402945,0.5108,59418.0,59417.0,0.001]
[1723937403141,0.573903,59418.0,59417.0,0.003]
[1723937403952,0.213103,59418.0,59417.0,0.003]
[1723937404150,0.573903,59418.0,59417.0,0.003]
[1723937404343,0.667203,59418.0,59417.0,0.003]
[1723937405745,0.306403,59418.0,59417.0,0.003]
[1723937406263,0.667203,59418.0,59417.0,0.003]
[1723937407145,0.306403,59418.0,59417.0,0.003]
[1723937407346,0.667203,59418.0,59417.0,0.003]
[1723937407541,0.306403,59418.0,59417.0,0.003]
[1723937443372,0.15,59418.0,59417.0,0.003]
[1723937451881,0.2413,59418.0,59417.0,0.003]
[1723937453681,0.6021,59418.0,59417.0,0.003]
[1723937456981,0.2413,59418.0,59417.0,0.003]
[1723937462985,0.3346,59418.0,59417.0,0.003]
[1723937463580,0.2413,59418.0,59417.0,0.003]
[1723937463781,0.2433,59418.0,59417.0,0.003]
[1723937467581,0.15,59418.0,59417.0,0.0963]
[1723937467885,0.00025231,59420.0,59417.0,0.18360638]
[1723937468082,0.00025231,59420.0,59418.0,0.042068]
[1723937468287,0.00025231,59420.0,59418.0,0.13843031]
[1723937468475,0.00025231,59420.0,59418.0,0.088168]
[1723937469279,0.00025231,59420.0,59418.0,0.089168]
[1723937471894,0.00025231,59420.0,59419.0,0.3608]
[1723937472383,0.00025231,59420.0,59419.0,0.39783933]
[1723937472696,0.00025231,59420.0,59419.0,0.3608]
[1723937473191,0.00125231,59420.0,59419.0,0.3608]
[1723937475290,0.00125231,59420.0,59419.0,0.41104058]
[1723937475487,0.00125231,59420.0,59419.0,0.05024058]
[1723937475686,0.00125231,59420.0,59419.0,0.41104058]
[1723937475893,0.00125231,59420.0,59419.0,0.05024058]
[1723937476092,0.00125231,59420.0,59419.0,0.41104058]
[1723937476291,0.00125231,59420.0,59419.0,0.05024058]
[1723937476493,0.00125231,59420.0,59419.0,0.41104058]
[1723937478293,0.00125231,59420.0,59419.0,0.3608]
[1723937480585,0.00125231,59420.0,59418.0,0.088168]
[1723937480788,0.00125231,59420.0,59419.0,0.3608]
[1723937481587,0.00025231,59420.0,59419.0,0.3608]
[1723937482701,0.00125231,59420.0,59418.0,0.088168]
[1723937482901,0.00125231,59420.0,59419.0,0.3608]
[1723937484000,0.00025231,59420.0,59419.0,0.3608]
[1723937484201,0.00025231,59420.0,59418.0,0.088168]
[1723937484496,0.00025231,59420.0,59419.0,0.3608]
[1723937484802,0.00125231,59420.0,59419.0,0.3608]
[1723937487699,0.00125231,59420.0,59418.0,0.088168]
[1723937488004,0.00125231,59420.0,59419.0,0.3608]
[1723937489296,0.00125231,59420.0,59418.0,0.088168]
[1723937489498,0.00125231,59420.0,59419.0,0.3608]
[1723937489896,0.00125231,59420.0,59418.0,0.088168]
[1723937489897,0.00025231,59420.0,59418.0,0.088168]
[1723937490098,0.00025231,59420.0,59419.0,0.3608]
[1723937490704,0.00025231,59420.0,59418.0,0.088168]
[1723937490907,0.00125231,59420.0,59419.0,0.3608]
[1723937491808,0.00025231,59420.0,59419.0,0.3608]
[1723937492199,0.00025231,59420.0,59418.0,0.13940858]
[1723937492400,0.00025231,59420.0,59418.0,0.13840858]
[1723937492600,0.00025231,59420.0,59419.0,0.3608]
[1723937493306,0.00125231,59420.0,59419.0,0.3608]
[1723937493903,0.00125231,59420.0,59419.0,0.042068]
[1723937494103,0.00125231,59420.0,59419.0,0.402868]
[1723937494307,0.00125231,59420.0,59419.0,0.45310858]
[1723937495015,0.00125231,59420.0,59419.0,0.09230858]
[1723937495510,0.00125231,59420.0,59419.0,0.45310858]
[1723937495699,0.00125231,59420.0,59419.0,0.09230858]
[1723937495901,0.00125231,59420.0,59419.0,0.45310858]
[1723937497014,0.00025231,59420.0,59419.0,0.45410858]
[1723937497302,0.09355231,59420.0,59419.0,0.3618]
[1723937498107,0.13561931,59420.0,59419.0,0.3618]
[1723937498302,0.66641931,59420.0,59419.0,0.001]
[1723937498507,0.04207,59416.0,59414.0,0.01022271]
[1723937498704,0.1414,59415.0,59414.0,0.01022271]
[1723937498901,0.2914,59415.0,59414.0,0.01022271]
[1723937500110,0.2924,59415.0,59414.0,0.01622271]
[1723937501114,0.2924,59415.0,59414.0,0.02022271]
[1723937526720,1.19732,59415.0,59414.0,0.01009193]
[1723937528426,1.19732,59415.0,59414.0,0.00609193]
[1723937528623,1.20032,59415.0,59414.0,0.00609193]
[1723937528828,1.20132,59415.0,59414.0,9.193e-05]
[1723937529915,1.21162047,59415.0,59414.0,9.193e-05]
[1723937533128,1.93322047,59415.0,59414.0,9.193e-05]
[1723937540034,1.83992047,59415.0,59414.0,9.193e-05]
[1723937540232,1.93322047,59415.0,59414.0,9.193e-05]
[1723937542935,1.42830047,59415.0,59414.0,9.193e-05]
[1723937543238,1.93322047,59415.0,59414.0,9.193e-05]
[1723937544443,1.21162047,59415.0,59414.0,9.193e-05]
[1723937544740,1.93322047,59415.0,59414.0,9.193e-05]
[1723937550533,1.21162047,59415.0,59414.0,9.193e-05]
[1723937550733,1.93322047,59415.0,59414.0,9.193e-05]
[1723937554133,1.88512047,59415.0,59414.0,9.193e-05]
[1723937556750,0.042072,59413.0,59406.0,0.0959]
[1723937557053,0.042072,59413.0,59401.0,0.0479]
[1723937557054,0.04208,59402.0,59401.0,0.0479]
[1723937557238,0.04208,59402.0,59393.0,0.06709199]
[1723937557239,0.042085,59394.0,59393.0,0.06709199]
[1723937557438,0.6241,59394.0,59391.0,0.0903]
[1723937557640,0.0933,59392.0,59391.0,0.0903]
[1723937557837,0.2333,59392.0,59391.0,0.0903]
[1723937559743,0.2333,59392.0,59391.0,0.1003]
[1723937559954,0.2343,59392.0,59391.0,0.1093]
[1723937566453,0.9559,59392.0,59391.0,0.1093]
[1723937570954,0.9559,59392.0,59391.0,0.019]
[1723937574863,0.9559,59392.0,59391.0,0.009]
[1723937575058,0.9559,59392.0,59391.0,0.018]
[1723937575258,0.9549,59392.0,59391.0,0.009]
[1723937575456,0.9559,59392.0,59391.0,0.018]
[1723937579568,0.8626,59392.0,59391.0,0.018]
[1723937579864,0.001,59392.0,59391.0,0.965208]
[1723937582661,0.001,59392.0,59391.0,0.565208]
[1723937582868,0.001,59392.0,59391.0,0.965208]
[1723937583071,0.001,59392.0,59391.0,0.565208]
[1723937584169,0.001,59392.0,59391.0,0.965208]
[1723937584765,0.001,59392.0,59391.0,0.565208]
[1723937584966,0.001,59392.0,59391.0,0.965208]
[1723937585760,0.001,59392.0,59391.0,0.565208]
[1723937585960,0.001,59392.0,59391.0,0.965208]
[1723937586870,0.001,59392.0,59391.0,0.565208]
[1723937587164,0.001,59392.0,59391.0,0.965208]
[1723937587367,0.001,59392.0,59391.0,0.565208]
[1723937587670,0.2643,59392.0,59391.0,0.060088]
[1723937595871,0.171,59392.0,59391.0,0.153388]
[1723937598274,0.171,59392.0,59391.0,0.245088]
[1723937599482,0.171,59392.0,59391.0,0.645088]
[1723937599678,0.0933,59396.0,59395.0,0.042085]
[1723937599983,0.2433,59396.0,59395.0,0.042085]
[1723937601073,0.2433,59396.0,59395.0,0.047085]
[1723937601879,0.2433,59396.0,59395.0,0.052085]
[1723937606192,0.2433,59396.0,59395.0,0.06247439]
[1723937611295,0.2433,59396.0,59395.0,0.15577439]
[1723937611296,0.15,59396.0,59395.0,0.15577439]
[1723937611489,0.00025253,59398.0,59397.0,0.042083]
[1723937611684,0.0933,59406.0,59403.0,0.042079]
[1723937611890,0.0933,59406.0,59395.0,0.95937101]
[1723937611891,0.2433,59406.0,59405.0,0.3608]
[1723937612094,0.2433,59406.0,59405.0,0.41122231]
[1723937612394,0.2433,59406.0,59405.0,0.3608]
[1723937612995,0.2473,59406.0,59405.0,0.3608]
[1723937613491,0.2503,59406.0,59405.0,0.3618]
[1723937613697,0.2503,59406.0,59405.0,0.3628]
[1723937613698,0.2563,59406.0,59405.0,0.3628]
[1723937617903,0.2563,59406.0,59405.0,0.002]
[1723937618100,0.2563,59406.0,59405.0,0.3628]
[1723937618598,0.2563,59406.0,59405.0,0.002]
[1723937618795,0.2563,59406.0,59405.0,0.3628]
[1723937623216,0.2563,59406.0,59405.0,0.002]
[1723937633321,0.6171,59406.0,59405.0,0.002]
[1723937633822,0.6645,59406.0,59405.0,0.002]
[1723937634418,0.5712,59406.0,59405.0,0.002]
[1723937634612,0.6645,59406.0,59405.0,0.002]
[1723937636321,0.6171,59406.0,59405.0,0.002]
[1723937636623,0.2563,59406.0,59405.0,0.002]
[1723937642119,1.1613,59406.0,59405.0,0.00074747]
[1723937649036,1.8829,59406.0,59405.0,0.00074747]
[1723937649934,1.3779,59406.0,59405.0,0.00074747]
[1723937650538,1.3896,59406.0,59405.0,0.00074747]
[1723937650833,1.4829,59406.0,59405.0,0.00074747]
[1723937655140,0.7613,59406.0,59405.0,0.00074747]
[1723937655335,1.4829,59406.0,59405.0,0.00074747]
[1723937656233,0.8846,59406.0,59405.0,0.00074747]
[1723937656539,0.9779,59406.0,59405.0,0.00074747]
[1723937669233,0.6171,59406.0,59405.0,0.00074747]
[1723937677746,0.2563,59406.0,59405.0,0.00074747]
[1723937677947,0.6171,59406.0,59405.0,0.00074747]
[1723937681453,0.5238,59406.0,59405.0,0.00074747]
[1723937681659,0.6171,59406.0,59405.0,0.00074747]
[1723937683760,0.2563,59406.0,59405.0,0.00074747]
[1723937684253,0.6171,59406.0,59405.0,0.00074747]
[1723937684856,0.2563,59406.0,59405.0,0.00074747]
[1723937685048,0.6171,59406.0,59405.0,0.00074747]
[1723937685857,0.2563,59406.0,59405.0,0.00074747]
[1723937686458,0.6171,59406.0,59405.0,0.00074747]
[1723937688160,0.2563,59406.0,59405.0,0.00074747]
[1723937688360,0.6171,59406.0,59405.0,0.00074747]
[1723937690861,0.2563,59406.0,59405.0,0.00074747]
[1723937691162,0.6171,59406.0,59405.0,0.00074747]
[1723937691462,0.5238,59406.0,59405.0,0.00074747]
[1723937691665,0.6171,59406.0,59405.0,0.00074747]
[1723937692565,0.2563,59406.0,59405.0,0.00074747]
[1723937692860,0.6171,59406.0,59405.0,0.00074747]
[1723937693958,0.5238,59406.0,59405.0,0.00074747]
[1723937694264,0.2563,59406.0,59405.0,0.00074747]
[1723937696855,0.163,59406.0,59405.0,0.00074747]
[1723937697457,0.163,59406.0,59405.0,0.90574747]
[1723937702767,0.2563,59406.0,59405.0,0.00074747]
[1723937709661,0.163,59406.0,59405.0,0.00074747]
[1723937709861,0.2563,59406.0,59405.0,0.00074747]
[1723937726974,0.163,59406.0,59405.0,0.00074747]
[1723937741294,0.163,59406.0,59405.0,0.36154747]
[1723937743297,0.156,59406.0,59405.0,0.36554747]
[1723937744292,0.156,59406.0,59405.0,0.00474747]
[1723937744503,0.156,59406.0,59405.0,0.3678]
[1723937744504,0.15,59406.0,59405.0,0.3678]
[1723937744802,0.15,59406.0,59405.0,0.4611]
[1723937745591,0.15,59406.0,59405.0,0.0993]
[1723937747501,0.15,59406.0,59405.0,0.0973]
[1723937747695,0.15,59406.0,59405.0,0.0983]
[1723937747998,0.15,59406.0,59405.0,0.0973]
[1723937748497,0.15,59406.0,59405.0,0.0953]
[1723937749200,0.15,59406.0,59405.0,0.4561]
[1723937750286,0.15,59406.0,59405.0,0.0953]
[1723937750691,0.15,59406.0,59405.0,0.4561]
[1723937754223,0.15,59406.0,59405.0,0.0953]
[1723937754395,0.15,59406.0,59405.0,0.4561]
[1723937756504,0.15,59406.0,59405.0,0.50652101]
[1723937759808,0.15,59406.0,59405.0,0.14572101]
[1723937763216,0.15,59406.0,59405.0,0.0953]
[1723937765018,0.15,59406.0,59405.0,0.4561]
[1723937766607,0.15,59406.0,59405.0,0.0953]
[1723937766913,0.15,59406.0,59405.0,0.56038978]
[1723937767108,0.0964,59414.0,59405.0,0.56038978]
[1723937767109,0.042068,59419.0,59405.0,0.54002162]
[1723937767307,0.192068,59419.0,59418.0,0.0933]
[1723937768906,0.206068,59419.0,59418.0,0.0943]
[1723937769115,0.164,59419.0,59418.0,0.0943]
[1723937769806,0.17,59419.0,59418.0,0.0953]
[1723937770818,0.17,59419.0,59418.0,0.0943]
[1723937771014,0.17,59419.0,59418.0,0.0953]
[1723937771015,0.167,59419.0,59418.0,0.0953]
[1723937773814,0.017,59419.0,59418.0,0.0953]
[1723937775610,0.017,59419.0,59418.0,0.10554278]
[1723937778015,0.017,59419.0,59418.0,0.01224278]
[1723937778323,0.017,59419.0,59418.0,0.10554278]
[1723937781725,0.177,59419.0,59418.0,0.10554278]
[1723937782323,0.177,59419.0,59418.0,0.01224278]
[1723937793534,1.44268,59419.0,59418.0,0.002]
[1723937796429,1.44268,59419.0,59413.0,0.00025253]
[1723937796629,0.0933,59414.0,59413.0,0.00025253]
[1723937796944,0.2533,59414.0,59413.0,0.00025253]
[1723937797640,0.2533,59414.0,59413.0,0.00125253]
[1723937798235,0.2593,59414.0,59413.0,0.00125253]
[1723937798939,0.2643,59414.0,59413.0,0.00125253]
[1723937807947,0.171,59414.0,59413.0,0.00125253]
[1723937808152,0.2643,59414.0,59413.0,0.00125253]
[1723937814149,0.171,59414.0,59413.0,0.99947253]
[1723937814445,0.0933,59427.0,59413.0,0.99947253]
[1723937814752,0.4842,59424.0,59421.0,0.4541]
[1723937814948,0.4842,59424.0,59422.0,0.0464]
[1723937815146,0.4842,59424.0,59422.0,0.0916]
[1723937815950,0.2533,59424.0,59422.0,0.0916]
[1723937816854,0.2583,59424.0,59422.0,0.0916]
[1723937817242,0.2553,59424.0,59422.0,0.0916]
[1723937817441,0.2683,59424.0,59422.0,0.10299329]
[1723937818144,0.2663,59424.0,59422.0,0.10399329]
[1723937825653,0.2663,59424.0,59422.0,0.002]
[1723937825850,0.308364,59424.0,59422.0,0.002]
[1723937826053,0.0463,59423.0,59422.0,0.002]
[1723937826357,0.2063,59423.0,59422.0,0.002]
[1723937827245,0.2083,59423.0,59422.0,0.002]
[1723937827446,0.2213,59423.0,59422.0,0.002]
[1723937829354,0.3146,59423.0,59422.0,0.002]
[1723937831655,0.6754,59423.0,59422.0,0.002]
[1723937833963,0.3146,59423.0,59422.0,0.002]
[1723937834159,0.6754,59423.0,59422.0,0.002]
[1723937836659,0.3146,59423.0,59422.0,0.002]
[1723937836872,0.2683,59423.0,59422.0,0.002]
[1723937838075,0.175,59423.0,59422.0,0.002]
[1723937838586,0.175,59423.0,59422.0,0.01195645]
[1723937838882,0.175,59423.0,59422.0,0.002]
[1723937840191,0.2683,59423.0,59422.0,0.002]
[1723937847383,0.175,59423.0,59422.0,0.002]
[1723937847695,0.2683,59423.0,59422.0,0.002]
[1723937853787,0.175,59423.0,59422.0,0.002]
[1723937859685,0.175,59423.0,59422.0,0.05229816]
[1723937865502,0.175,59423.0,59422.0,0.05230846]
[1723937865700,0.175,59423.0,59422.0,0.05230819]
[1723937865889,0.175,59423.0,59422.0,0.002]
[1723937867499,0.175,59423.0,59422.0,0.05230426]
[1723937869304,0.175,59423.0,59422.0,0.002]
[1723937878498,0.175,59423.0,59422.0,0.0953]
[1723937879808,0.175,59423.0,59422.0,0.14560426]
[1723937880225,0.175,59423.0,59422.0,0.0953]
[1723937880415,0.175,59423.0,59422.0,0.14560426]
[1723937881411,0.175,59423.0,59422.0,0.05230426]
[1723937883419,0.175,59423.0,59422.0,0.002]
[1723937884416,0.175,59423.0,59422.0,0.05235237]
[1723937884610,0.175,59423.0,59422.0,0.14565237]
[1723937884812,0.175,59423.0,59422.0,0.0953]
[1723937899336,0.5358,59423.0,59422.0,0.002]
[1723937899540,0.042067,59420.0,59418.0,0.05036328]
[1723937899746,0.139,59419.0,59415.0,0.00994107]
[1723937900042,0.042071,59414.0,59412.0,0.05036328]
[1723937900234,0.192071,59414.0,59411.0,0.05036328]
[1723937900435,0.192071,59414.0,59408.0,0.05036328]
[1723937900731,0.192071,59414.0,59405.0,0.16046201]
[1723937900732,0.192071,59414.0,59407.0,0.05036328]
[1723937901346,0.192071,59414.0,59406.0,0.41116328]
[1723937901540,0.194071,59414.0,59410.0,0.00996344]
[1723937902443,0.199071,59414.0,59410.0,0.00996344]
[1723937904037,0.157,59414.0,59413.0,0.09355253]
[1723937912546,0.157,59414.0,59413.0,0.00025253]
[1723937940771,0.157,59414.0,59402.0,0.06716201]
[1723937940772,0.0933,59406.0,59404.0,0.05036328]
[1723937940962,0.0933,59405.0,59402.0,0.06069318]
[1723937941270,0.2633,59405.0,59402.0,0.06069318]
[1723937941792,0.17,59405.0,59404.0,0.0933]
[1723937942474,0.171,59405.0,59404.0,0.0983]
[1723937942860,0.17,59405.0,59404.0,0.0983]
[1723937943065,0.17,59405.0,59404.0,0.15366328]
[1723937943270,0.17,59405.0,59404.0,0.1033]
[1723937944177,0.17,59405.0,59404.0,0.17046201]
[1723937944374,0.17,59405.0,59404.0,0.1033]
[1723937945871,0.00025253,59409.0,59404.0,1.0083]
[1723937946170,0.3608,59416.0,59411.0,0.025244]
[1723937946367,0.5308,59416.0,59413.0,0.0933]
[1723937947175,0.0933,59415.0,59413.0,0.0933]
[1723937947374,0.2333,59415.0,59412.0,0.1387]
[1723937948173,0.0933,59413.0,59412.0,0.1387]
[1723937948373,0.2433,59413.0,59412.0,0.1387]
[1723937949379,0.2503,59413.0,59412.0,0.1387]
[1723937949781,0.2503,59413.0,59412.0,0.14895683]
[1723937950384,0.2503,59413.0,59412.0,0.05785683]
[1723937951982,0.157,59413.0,59412.0,0.15115683]
[1723937954585,0.157,59413.0,59412.0,0.05785683]
[1723937956985,0.2503,59413.0,59412.0,0.05785683]
[1723937959377,0.157,59413.0,59412.0,0.05785683]
[1723937959577,0.3233,59415.0,59412.0,0.05785683]
[1723937959578,0.23,59415.0,59412.0,1.05611683]
[1723937959790,0.3242,59430.0,59414.0,0.3608]
[1723937959791,0.4541,59430.0,59414.0,0.3608]
[1723937959983,0.2633,59430.0,59427.0,0.3608]
[1723937960379,0.17,59430.0,59428.0,0.0933]
[1723937960580,0.17,59430.0,59428.0,0.14362005]
[1723937960780,0.0933,59433.0,59429.0,0.05032005]
[1723937961092,0.2633,59433.0,59429.0,0.05032005]
[1723937961283,0.2633,59433.0,59428.0,0.0933]
[1723937961479,0.006,59430.0,59428.0,0.0933]
[1723937961893,0.0933,59433.0,59428.0,0.0933]
[1723937962092,0.2773,59433.0,59429.0,0.002]
[1723937962596,0.011,59430.0,59429.0,0.001]
[1723937962901,0.151,59430.0,59429.0,0.001]
[1723937963284,0.151,59430.0,59429.0,0.3618]
[1723937963995,0.151,59430.0,59429.0,0.3608]
[1723937964193,0.14,59430.0,59429.0,0.3608]
[1723937964703,0.151,59430.0,59429.0,0.3618]
[1723937965003,0.151,59430.0,59429.0,0.3628]
[1723937966909,0.151,59430.0,59429.0,0.002]
[1723937967499,0.011,59430.0,59429.0,0.002]
[1723937969811,0.181,59430.0,59429.0,0.002]
[1723937970209,0.2743,59430.0,59429.0,0.002]
[1723937972810,0.2743,59430.0,59429.0,0.3628]
[1723937975107,0.181,59430.0,59429.0,0.3628]
[1723937977710,0.181,59430.0,59429.0,0.002]
[1723937978026,0.181,59430.0,59429.0,0.3628]
[1723937979722,0.2743,59430.0,59429.0,0.002]
[1723937992321,0.181,59430.0,59429.0,0.002]
[1723937992623,0.025232,59439.0,59429.0,0.002]
[1723937992624,0.11853,59445.0,59429.0,1.2676]
[1723937992924,0.5308,59444.0,59442.0,0.0933]
[1723937993322,0.025234,59435.0,59434.0,0.05026411]
[1723937993523,0.025234,59435.0,59431.0,0.00025253]
[1723937993524,0.025235,59433.0,59431.0,0.00025253]
[1723937993723,0.1389,59432.0,59431.0,0.00025253]
[1723937993915,0.2989,59432.0,59431.0,0.00025253]
[1723937994115,0.2056,59432.0,59431.0,0.00025253]
[1723937994312,0.16,59432.0,59431.0,0.45435253]
[1723937994520,0.38088,59435.0,59431.0,0.45435253]
[1723937994521,0.011,59435.0,59434.0,0.001]
[1723937994727,0.011,59435.0,59434.0,0.0943]
[1723937995113,0.0933,59441.0,59434.0,0.0933]
[1723937995431,0.17,59441.0,59440.0,0.3608]
[1723937995617,0.17,59441.0,59439.0,0.05025569]
[1723937995816,0.17,59441.0,59438.0,0.05025569]
[1723937996337,0.17,59441.0,59440.0,0.3608]
[1723937997123,0.2633,59441.0,59440.0,0.3608]
[1723937997327,0.2633,59441.0,59437.0,0.14355569]
[1723937998218,0.2633,59441.0,59440.0,0.3608]
[1723937998418,0.2643,59441.0,59440.0,0.3618]
[1723937999130,0.2643,59441.0,59440.0,0.3608]
[1723937999425,0.2643,59441.0,59437.0,0.10568912]
[1723937999627,0.2643,59441.0,59437.0,0.15594481]
[1723937999823,0.2643,59441.0,59437.0,0.10468912]
[1723938000127,0.2643,59441.0,59440.0,0.001]
[1723938000625,0.171,59441.0,59440.0,0.002]
[1723938000825,0.171,59441.0,59440.0,0.0953]
[1723938001030,0.17,59441.0,59440.0,0.0943]
[1723938001214,0.171,59441.0,59440.0,0.0943]
[1723938001532,0.171,59441.0,59440.0,0.0933]
[1723938001827,0.171,59441.0,59440.0,0.0943]
[1723938002329,0.171,59441.0,59440.0,0.001]
[1723938002528,0.171,59441.0,59440.0,0.002]
[1723938005117,0.2643,59441.0,59440.0,0.002]
[1723938008532,0.171,59441.0,59440.0,0.002]
[1723938008933,0.171,59441.0,59440.0,0.0953]
[1723938010528,0.171,59441.0,59440.0,0.1433]
[1723938014331,0.171,59441.0,59440.0,0.05]
[1723938016431,0.171,59441.0,59440.0,0.1433]
[1723938019342,0.171,59441.0,59440.0,0.13937216]
[1723938022145,0.171,59441.0,59440.0,0.18962785]
[1723938022748,0.171,59441.0,59440.0,0.13937216]
[1723938024041,0.171,59441.0,59440.0,0.50017216]
[1723938024638,0.171,59441.0,59440.0,0.56719255]
[1723938024842,0.0482,59448.0,59440.0,0.56719255]
[1723938024843,0.0482,59448.0,59440.0,1.07191255]
[1723938025040,0.1982,59448.0,59445.0,0.0933]
[1723938025343,0.1982,59448.0,59445.0,0.14356842]
[1723938027145,0.1982,59448.0,59446.0,0.05026842]
[1723938029653,0.1982,59448.0,59446.0,0.05126842]
[1723938030554,0.1982,59448.0,59446.0,0.05226842]
[1723938031258,0.1982,59448.0,59446.0,0.002]
[1723938031643,0.1982,59448.0,59446.0,0.01208011]
[1723938033353,0.15,59448.0,59447.0,0.05026842]
[1723938033555,0.00088,59450.0,59446.0,0.39810911]
[1723938033748,0.071325,59456.0,59449.0,0.14355875]
[1723938033952,0.1956,59453.0,59449.0,0.14355875]
[1723938034155,0.15,59453.0,59449.0,0.07548675]
[1723938034348,0.15,59453.0,59452.0,0.0933]
[1723938034756,0.071325,59456.0,59452.0,0.0933]
[1723938034954,0.241325,59456.0,59452.0,0.0933]
[1723938036554,0.241325,59456.0,59452.0,0.0943]
[1723938036747,0.241325,59456.0,59452.0,0.001]
[1723938036748,0.0933,59454.0,59452.0,0.001]
[1723938037167,0.0933,59454.0,59452.0,0.01123956]
[1723938037466,0.0933,59454.0,59452.0,0.002]
[1723938039054,0.0933,59454.0,59452.0,0.001]
[1723938039254,0.0933,59454.0,59452.0,0.002]
[1723938040257,0.071325,59456.0,59452.0,0.002]
[1723938040450,0.241325,59456.0,59452.0,0.002]
[1723938040651,0.334625,59456.0,59453.0,0.3608]
[1723938042263,0.334625,59456.0,59453.0,0.3618]
[1723938043163,0.334625,59456.0,59453.0,0.3628]
[1723938046757,0.025225,59455.0,59453.0,0.002]
[1723938046966,0.165225,59455.0,59453.0,0.002]
[1723938048365,0.165225,59455.0,59453.0,0.001]
[1723938048564,0.165225,59455.0,59453.0,0.002]
[1723938049662,0.526025,59455.0,59453.0,0.002]
[1723938050058,0.165225,59455.0,59453.0,0.002]
[1723938067879,0.0933,59454.0,59453.0,0.002]
[1723938068178,0.2333,59454.0,59453.0,0.002]
[1723938075674,0.5941,59454.0,59453.0,0.002]
[1723938085787,0.2333,59454.0,59453.0,0.002]
[1723938099186,0.14,59454.0,59453.0,0.002]
[1723938099383,0.2333,59454.0,59453.0,0.002]
[1723938101694,0.14,59454.0,59453.0,0.002]
[1723938101895,0.2333,59454.0,59453.0,0.002]
[1723938103899,0.14,59454.0,59453.0,0.002]
[1723938104096,0.2333,59454.0,59453.0,0.002]
[1723938113797,0.14,59454.0,59453.0,0.0953]
[1723938114102,0.0933,59465.0,59453.0,0.6484]
[1723938114301,0.0933,59463.0,59460.0,0.05025546]
[1723938114601,0.16,59463.0,59461.0,0.0478]
[1723938114792,0.16,59463.0,59461.0,0.12327746]
[1723938115196,0.16,59463.0,59462.0,0.55477546]
[1723938115396,0.0933,59464.0,59462.0,0.05018621]
[1723938115803,0.0933,59464.0,59463.0,0.05018621]
[1723938116398,0.0933,59464.0,59462.0,0.05018621]
[1723938116605,0.0933,59464.0,59462.0,0.05118621]
[1723938116908,0.0933,59464.0,59462.0,0.05218621]
[1723938117495,0.0933,59464.0,59462.0,0.002]
[1723938117809,0.0933,59464.0,59462.0,0.05218621]
[1723938118308,0.0933,59464.0,59463.0,0.001]
[1723938118899,0.0933,59464.0,59462.0,0.002]
[1723938119510,0.0933,59464.0,59463.0,0.001]
[1723938119699,0.0933,59464.0,59463.0,0.50552]
[1723938119902,0.0933,59464.0,59463.0,0.001]
[1723938120203,0.0933,59464.0,59463.0,0.002]
[1723938120403,0.2633,59464.0,59463.0,0.002]